Cogmind - Beta 13 *** ADVENTURER MODE // 2024.05.12 @ 17:12:53 Player: XorOwl Result: Destroyed by as-47024 with Assembled Blade Performance ------------- Evolutions (0) 0 Regions Visited (4) 800 Robots Destroyed (7) 35 Value Destroyed (60) 60 Prototype IDs (0) 0 Alien Tech Used (0) 0 Bonus (0) 0 TOTAL SCORE: 895 Bonus ------- None Cogmind --------- Core Integrity 0/250 Matter 223/300 Energy 100/100 System Corruption 4% Temperature Cool (0) Movement Core (50) Location -9/Mines Parts ------- > --- POWER (1) -------- (None) > --- PROPULSION (2) --- (None) > --- UTILITY (2) ------ (None) > --- WEAPON (2) ------- (None) > --- INVENTORY (5) ---- Improved Terrain Scanner Peak State ------------ > --- POWER ------------ Light Ion Engine > --- PROPULSION ------- Wheel Wheel > --- UTILITY ---------- Small Storage Unit Seismic Detector > --- WEAPON ----------- Assault Rifle Light Assault Rifle > --- INVENTORY -------- (None) [Rating: 7] Favorites ----------- Power Light Ion Engine Engine Light Ion Engine Propulsion Wheel Wheel Wheel Utility Small Storage Unit Device Seismic Detector Storage Small Storage Unit Weapon Light Assault Rifle Ballistic Gun Light Assault Rifle Build | -11 -10 -10 -10 -9 ------- Run | Yrd Mat Min Exi Min Slots Evolved . | . . . . . Power . | . . . . . Propulsion . | . . . . . Utility . | . . . . . Weapon . | . . . . . Parts Attached 8 | 8 . . . . Power 1 | 1 . . . . Engine 1 | 1 . . . . Core . | . . . . . Reactor . | . . . . . Propulsion 2 | 2 . . . . Treads . | . . . . . Leg . | . . . . . Wheel 2 | 2 . . . . Hover . | . . . . . Flight . | . . . . . Utility 2 | 2 . . . . Device 1 | 1 . . . . Storage 1 | 1 . . . . Processor . | . . . . . Hackware . | . . . . . Protection . | . . . . . Artifact . | . . . . . Weapon 3 | 3 . . . . Energy Gun . | . . . . . Energy Cannon . | . . . . . Ballistic Gun 3 | 3 . . . . Ballistic Cannon . | . . . . . Launcher . | . . . . . Special Weapon . | . . . . . Impact Weapon . | . . . . . Slashing Weapon . | . . . . . Piercing Weapon . | . . . . . Special Melee Weapon . | . . . . . Unidentified Prototypes . | . . . . . Parts Lost 6 | . . . . 6 Power 1 | . . . . 1 Propulsion 2 | . . . . 2 Utility 1 | . . . . 1 Weapon 2 | . . . . 2 Highest Loss Streak 6 | . . . . 6 To Critical Strikes . | . . . . . Average Slot Usage (%) 95 | . 100 100 100 49 Engine 13 | . 14 14 14 10 Wheel 26 | . 28 28 28 10 Device 13 | . 14 14 14 3 Storage 13 | . 14 14 14 10 Ballistic Gun 26 | . 28 28 28 14 Naked Turns 9 | . . . . 9 Heaviest Build 12 | 12 12 12 12 11 Greatest Support 20 | 20 20 20 20 3 Greatest Overweight (x) 3 | . . . . 3 Average Overweight (x) . | . . . . . Largest Inventory Capacity 8 | 8 8 8 8 8 Average Capacity 7 | 7 8 8 8 7 Most Carried 1 | 1 1 1 1 1 Average Carried . | . 1 1 1 1 Final Capacity 8 | 8 8 8 8 5 Final Carried 1 | 1 1 1 1 1 Class Distribution -------------------- 100% | Mutant Dominant Class ---------------- Mutant | -10/Materials Mutant | -10/Mines Mutant | -10/Exiles Mutant | -9/Mines Resources | -11 -10 -10 -10 -9 ----------- Run | Yrd Mat Min Exi Min Matter Collected 295 | 214 . 81 . . Remotely . | . . . . . Salvage Created 191 | 108 46 . . 37 Parts 12 | 7 5 . . . Haulers Intercepted . | . . . . . Recyclers Shooed 1 | 1 . . . . Parts Field Recycled . | . . . . . Retrieved Matter . | . . . . . Parts Self-Destructed . | . . . . . Prevented . | . . . . . Kills | -11 -10 -10 -10 -9 ------- Run | Yrd Mat Min Exi Min Combat Hostiles Destroyed 6 | . 3 . . 3 Guns 6 | . 3 . . 3 Classes Destroyed 4 | 2 1 . . 1 Tunneler 2 | 2 . . . . Recycler 1 | 1 . . . . Swarmer 4 | . 3 . . 1 Assembled 2 | . . . . 2 Best Kill Streak 3 | 2 3 . . 3 Combat Bots Only 3 | . 3 . . 3 Max Kills in Single Turn 1 | 1 1 . . 1 Gunslinging . | . . . . . Exploded . | . . . . . Melee . | . . . . . Uniques/NPCs Destroyed . | . . . . . Combat | -11 -10 -10 -10 -9 -------- Run | Yrd Mat Min Exi Min Hostile Shots Fired 99 | . 28 . . 71 Missed 36 | . 10 . . 26 Damage Taken 663 | . 116 . . 547 Core 259 | . 29 . . 230 Absorbed by Shields . | . . . . . Ignored by Resistances 193 | . 37 . . 156 Core Remaining (%) 100 | 100 . . . . Volleys Fired 28 | 9 10 1 . 8 Largest 2 | 2 2 2 . 2 Hottest 40 | 40 40 40 . 40 Shots Fired 56 | 18 20 2 . 16 Gun 56 | 18 20 2 . 16 Cannon . | . . . . . Launcher . | . . . . . Special . | . . . . . Kinetic 56 | 18 20 2 . 16 Thermal . | . . . . . Explosive . | . . . . . Electromagnetic . | . . . . . Robot Hit Streak 8 | 8 4 2 . 5 Robot Miss Streak 2 | 1 2 . . 2 Penetration Max . | . . . . . Secondary Targets 4 | . 2 . . 2 Max Gunslinging Chain 1 | . 1 . . 1 Shots Hit Robots 37 | 13 11 2 . 11 Core Hits 15 | 5 3 1 . 6 Critical Kills . | . . . . . Critical Parts Destroyed . | . . . . . Critical Strikes . | . . . . . Melee Attacks . | . . . . . Impact . | . . . . . Slashing . | . . . . . Piercing . | . . . . . Sneak Attacks . | . . . . . Combat Hostiles . | . . . . . Follow-up Attacks . | . . . . . Damage Inflicted 392 | 133 120 17 . 122 Guns 392 | 133 120 17 . 122 Cannons . | . . . . . Explosions . | . . . . . Melee . | . . . . . Ramming . | . . . . . Kinetic 392 | 133 120 17 . 122 Thermal . | . . . . . Explosive . | . . . . . Electromagnetic . | . . . . . Impact . | . . . . . Slashing . | . . . . . Piercing . | . . . . . Highest Corruption 4 | . . . . 4 Average Corruption 3 | . . . . 3 Corruption Purged . | . . . . . Corruption Blocked . | . . . . . Effects 1 | . . . . 1 Matter Fused 1 | . . . . 1 Overload Shots . | . . . . . Overflow Damage . | . . . . . Projectiles . | . . . . . Explosions . | . . . . . Melee . | . . . . . Knockbacks . | . . . . . Impact . | . . . . . Kinetic . | . . . . . Secondary . | . . . . . Self-Inflicted Damage . | . . . . . Shots . | . . . . . Rammed . | . . . . . Targets Rammed . | . . . . . Kicked . | . . . . . Crushed . | . . . . . Highest Temperature . | . . . . . Average Temperature . | . . . . . Received Heat Transfer 6 | . 6 . . . Siege Activations . | . . . . . Robots Corrupted . | . . . . . Combat Hostiles . | . . . . . Parts Fried . | . . . . . Impact Corruptions . | . . . . . Robots Melted . | . . . . . Combat Hostiles . | . . . . . Parts Melted . | . . . . . Heat Transferred . | . . . . . Parts Sabotaged . | . . . . . Parts Stolen . | . . . . . Parts Stripped . | . . . . . Power Chain Reactions . | . . . . . Alert | -11 -10 -10 -10 -9 ------- Run | Yrd Mat Min Exi Min Peak Influence 124 | 15 124 40 . 30 Initial 40 | . 8 40 . . Average 35 | 5 60 40 . 8 Maximum Alert Level . | . . . . . Low Security (%) 100 | 100 100 100 . 100 Level 1 . | . . . . . Level 2 . | . . . . . Level 3 . | . . . . . Level 4 . | . . . . . Level 5 . | . . . . . High Security . | . . . . . Max Security . | . . . . . Squads Dispatched 1 | . 1 . . . Investigation 1 | . 1 . . . Extermination . | . . . . . Reinforcement . | . . . . . Assault . | . . . . . Garrison . | . . . . . Intercept . | . . . . . Searches Triggered . | . . . . . Construction Impeded . | . . . . . Haulers Reinforced . | . . . . . Active Scanning Responses . | . . . . . Cargo Convoy Interrupts . | . . . . . Stealth | -11 -10 -10 -10 -9 --------- Run | Yrd Mat Min Exi Min Distress Signals . | . . . . . Communications Jammed . | . . . . . Distress Signals . | . . . . . Times Spotted 29 | . 4 1 . 24 Peak Tracking Total 23 | . 3 . . 23 Tactical Retreats 2 | . . . . 2 Traps | -11 -10 -10 -10 -9 ------- Run | Yrd Mat Min Exi Min Traps Triggered 2 | . 2 . . . Indirectly . | . . . . . Trap Hack Attempts . | . . . . . Triggered . | . . . . . Disarmed . | . . . . . Reprogrammed . | . . . . . Reused . | . . . . . Traps Extracted . | . . . . . Installed . | . . . . . Triggered . | . . . . . Machines | -11 -10 -10 -10 -9 ---------- Run | Yrd Mat Min Exi Min Machines Disabled . | . . . . . Max in Single Turn . | . . . . . Machines Repaired . | . . . . . Machines Dismantled . | . . . . . Machines Sabotaged . | . . . . . Overloaded Fab Kills . | . . . . . Hacking | -11 -10 -10 -10 -9 --------- Run | Yrd Mat Min Exi Min Machines Accessed 4 | . 4 . . . Terminals 3 | . 3 . . . Fabricators . | . . . . . Repair Stations . | . . . . . Recycling Units 1 | . 1 . . . Scanalyzers . | . . . . . Garrison Access . | . . . . . Total Hacks 16 | . 16 . . . Successful 9 | . 9 . . . Failed 7 | . 7 . . . Catastrophic . | . . . . . Database Lockouts . | . . . . . Manual 9 | . 9 . . . Terminals 15 | . 15 . . . Fabricators . | . . . . . Repair Stations . | . . . . . Recycling Units 1 | . 1 . . . Scanalyzers . | . . . . . Garrison Access . | . . . . . Terminal Hacks 5 | . 5 . . . Robot Schematic 1 | . 1 . . . Terminal Index 1 | . 1 . . . Alert Level 1 | . 1 . . . Dispatch Records 1 | . 1 . . . Hauler Manifests 1 | . 1 . . . Fabricator Hacks . | . . . . . Repair Station Hacks . | . . . . . Recycling Unit Hacks . | . . . . . Scanalyzer . | . . . . . Garrison Access Hacks . | . . . . . Unauthorized Hacks 4 | . 4 . . . Terminals 3 | . 3 . . . Botnet 3 | . 3 . . . Fabricators . | . . . . . Repair Stations . | . . . . . Recycling Units 1 | . 1 . . . Tunnel 1 | . 1 . . . Scanalyzers . | . . . . . Garrison Access . | . . . . . Data Cores Recovered . | . . . . . Used . | . . . . . Hacking Detections 3 | . 3 . . . Full Trace Events 1 | . 1 . . . Feedback Events . | . . . . . Feedback Blocked . | . . . . . Robot Schematics Acquired 1 | . 1 . . . Robots Built . | . . . . . Authchips . | . . . . . Time . | . . . . . Total Robot Build Rating . | . . . . . Part Schematics Acquired . | . . . . . Parts Built . | . . . . . Authchips . | . . . . . Time . | . . . . . Total Part Build Rating . | . . . . . Parts Repaired . | . . . . . Time . | . . . . . Parts Recycled . | . . . . . Recycled Matter . | . . . . . Retrieved Matter . | . . . . . Retrieved Components . | . . . . . Parts Scanalyzed . | . . . . . Part Schematics Acquired . | . . . . . Parts Damaged . | . . . . . Bothacking | -11 -10 -10 -10 -9 ------------ Run | Yrd Mat Min Exi Min Used RIF Installer . | . . . . . Robots Hacked . | . . . . . Non-combat . | . . . . . Combat . | . . . . . Robot Hacks Applied . | . . . . . Relay Couplers Released . | . . . . . Fabnet Peak Effective % . | . . . . . Robots Rewired . | . . . . . Allies Hacked . | . . . . . Hacks Repelled . | . . . . . Allies | -11 -10 -10 -10 -9 -------- Run | Yrd Mat Min Exi Min Total Allies . | . . . . . Largest Group . | . . . . . Highest-Rated Group . | . . . . . Highest-Rated Ally . | . . . . . Total Orders . | . . . . . Ally Attacks . | . . . . . Total Damage . | . . . . . Kills . | . . . . . Allies Corrupted . | . . . . . Allies Melted . | . . . . . Intel | -11 -10 -10 -10 -9 ------- Run | Yrd Mat Min Exi Min Robot Analysis Total . | . . . . . Derelict Logs Recovered . | . . . . . Drone Launches . | . . . . . Drone Recoveries . | . . . . . Exploration | -11 -10 -10 -10 -9 ------------- Run | Yrd Mat Min Exi Min Turns Passed 506 | 86 136 51 191 42 Spaces Moved 494 | 60 117 53 239 25 Core 27 | 2 . . . 25 Treads . | . . . . . Legs . | . . . . . Wheels 467 | 58 117 53 239 . Hover . | . . . . . Flight . | . . . . . Fastest Speed 50 | 50 80 80 80 50 Average Speed 79 | 79 80 80 80 74 Slowest Speed 200 | 80 80 80 80 200 Overloaded Moves . | . . . . . Propulsion Burnouts . | . . . . . Robots Hopped . | . . . . . Cave-ins Triggered . | . . . . . Exploration Rate (%) 23 | 5 22 15 67 9 Regions Visited 4 Branch Regions 3 Pre-discovered Areas 1 | . 1 . . . Known Exits Taken . | . . . . . Unknown Exits Taken 4 | 1 1 1 1 . Scrap Searched . | . . . . . Spaces Dug . | . . . . . Terrain Destroyed . | . . . . . Melee . | . . . . . Projectile . | . . . . . AOE . | . . . . . Terrain Rammed . | . . . . . Walls Destroyed . | . . . . . Machines Disabled . | . . . . . Actions | -11 -10 -10 -10 -9 --------- Run | Yrd Mat Min Exi Min Total 550 | 78 141 59 238 34 Wait 21 | . 15 6 . . Move 490 | 59 116 52 238 25 Hop . | . . . . . Pick Up 1 | 1 . . . . Fast Attach 7 | 7 . . . . Attach . | . . . . . Detach . | . . . . . Swap 1 | 1 . . . . Drop 2 | 1 . . . 1 Fire 28 | 9 10 1 . 8 Melee . | . . . . . Ram . | . . . . . Kick . | . . . . . Crush . | . . . . . Escape Stasis . | . . . . . Rewire . | . . . . . Trap . | . . . . . Miscellaneous . | . . . . . Route ------- -11/Scrapyard -10/Materials -10/Mines -10/Exiles -9/Mines History --------- Turn | Location | Event 2 | -11/Scrapyard | Met Revision 17 20 | -11/Scrapyard | Discovered new exit (range 16) 87 | -11/Scrapyard | Entered Materials 155 | -10/Materials | Discovered new exit (range 11) 180 | -10/Materials | Met 8R-AWN 223 | -10/Materials | Entered Mines 226 | -10/Mines | Followed 8R-AWN into the Mines 270 | -10/Mines | Discovered new exit (range 5) 274 | -10/Mines | Entered Exiles 295 | -10/Exiles | Welcomed by 8R-AWN 300 | -10/Exiles | Build established: Mutant 315 | -10/Exiles | Met EX-HEX 347 | -10/Exiles | Met EX-DEC 372 | -10/Exiles | Visited The Gauntlet 411 | -10/Exiles | Met EX-BIN 458 | -10/Exiles | Discovered new exit (range 10) 465 | -10/Exiles | Entered Mines 466 | -9/Mines | Assembled infested the area 492 | -9/Mines | Core integrity fell below 50% 503 | -9/Mines | Core integrity fell below 20% 507 | -9/Mines | Destroyed by as-47024 with Assembled Blade Last Messages --------------- S-10 Pest system corrupted by crushing effect. S-10 Pest knocked back. S-10 Pest destroyed. Wheel destroyed. System corrupted by crushing effect (+2). as-74802 destroyed. Seismic Detector destroyed. System corrupted by crushing effect (+2). Knocked back. System corrupted: Matter fused (-10). as-40036 destroyed. Wheel destroyed. as-60707 destroyed. as-33270 destroyed. Switching to secondary target: as-89260. Lgt. Assault Rifle destroyed. Assault Rifle destroyed. Lgt. Ion Engine destroyed. Dropped Sml. Storage Unit. T-07 Excavator destroyed. Map ----- +----------------------------------------------------+ | | | | | | | | | | | | | | | | | | | | | ?????????????????????????????????????????????????? | | ?????????????????????????????????????????????????? | | ?????????????????????????????????????????????????? | | ?????????????????????????????????????????????????? | | ?????????????????????????????????????????????????? | | ?????????????????????????????????????????????????? | | ?????????????????????????????????????????????????? | | ??????????????????????###????????????????????????? | | ?????????????????????? ????????????????????????? | | ??????????????????????# ???????????????????????? | | ??????????????????????# #???????????????????????? | | ??????????????????????#! #???????????????????????? | | ??????????????????????#% #???????????????????????? | | ?????????????????????##| ##??????????????????????? | | ????????####????????## ##?????????????????????? | | ?####?### #???????## @ ##????????????????????? | | ## ### #??###### a ##???????????????????? | | # % #### """ #???????????????????? | | = ## !aaa """ #???????????????????? | | %% ########## a """ ##???????????????????? | | %%##????????##### a ##????????????????????? | | # ##?????????????#### ##?????????????????????? | | # ??????????????????## ##??????????????????????? | | ???????????????????####???????????????????????? | | $ ??????????????????????????????????????????????? | | ###??????????????????????????????????????????????? | | ?????????????????????????????????????????????????? | | ?????????????????????????????????????????????????? | | ?????????????????????????????????????????????????? | | ?????????????????????????????????????????????????? | | ?????????????????????????????????????????????????? | | ?????????????????????????????????????????????????? | | ?????????????????????????????????????????????????? | | ?????????????????????????????????????????????????? | | ?????????????????????????????????????????????????? | | ?????????????????????????????????????????????????? | | ?????????????????????????????????????????????????? | | ?????????????????????????????????????????????????? | | ?????????????????????????????????????????????????? | | ?????????????????????????????????????????????????? | +----------------------------------------------------+ Best States ------------- Heat Dissipation 25 Energy Generation 10 Energy Capacity 125 Matter Stores 235 Matter Capacity 300 Sight Range 16 Terrain Scan Density 10 Resistance: KI 20 Resistance: TH 20 Resistance: EX 20 Resistance: EM 20 Resistance: I 20 Resistance: S 20 Resistance: P 20 Evasion (%) 50 Offensive Hacking 10 Item Schematics ----------------- None Robot Schematics ------------------ O-16 Technician | -10/Materials | Hacked Fabricated ------------ Nothing Alien Tech Used ----------------- None Achievements -------------- None Challenges ------------ None Game ------ Seed NetworkDroneGreatsword Manual? 0 Play Time 00:09:09 Cumulative 172.9 hours Start 2024.05.12 @ 17:03:39 End 2024.05.12 @ 17:12:53 Sessions 1 Manual Loads 0 Difficulty Adventurer Special Mode None Game No. 46 Rogue 0 Adventurer 46 Explorer 0 Win Type - Total 2 Types 1/0/1/0/0/0/0/0/0 Lore% 48 Gallery% 53 Achievement% 51 Wizard Run 0 Options --------- Layout 0 ASCII 0 Keyboard 0 Movement Mouse Keybinds 0 Fullscreen 2 Font 18/SmallcapsGlow Map View 76x50 Zoom Use 0% Tactical HUD 0 Map Filters NONE Filters NONE Steam 1 RUN: 149b8b90-1ceb-4063-a325-110164c66a88